Workbook

Sheet 预算执行情况
A1: 2022年第一季度经营预算执行情况 | K1: 万元
A2: 单位：乌海市金融控股集团有限责任公司 | H2: 单位：万元
A3: 序号 | B3: 单位名称 | C3: 收 入 | E3: 成本费用 | G3: 利润总额 | I3: 所得税 | J3: 净利润 | K3: 归母净利润
C4: 2022年预算 | D4: 2022年第一季度执行情况 | E4: 2022年预算 | F4: 2022年第一季度执行情况 | G4: 2022年预算 | H4: 2022年第一季度执行情况
A6: 1 | B6: 乌海市金融控股集团有限责任公司 | C6: 1254 | D6: =188 -> 188 | E6: 629 | F6: 106 | G6: =C6-E6 -> 625 | H6: =D6-F6 -> 82 | J6: =G6-I6 -> 625 | K6: =J6 -> 625.00
A7: 2 | B7: 乌海市盛达融资担保有限责任公司 | C7: 936 | D7: =34+9.4 -> 43 | E7: 558 | F7: -194 | G7: =C7-E7 -> 378 | H7: =D7-F7 -> 237 | I7: 2 | J7: 376 | K7: =J7*89.67% -> 337.16
A8: 3 | B8: 乌海市交通投融资有限责任公司 | C8: 316 | D8: 31 | E8: 167 | F8: 19 | G8: 149 | H8: 12 | I8: 5 | J8: 144 | K8: 143.74
A9: 4 | B9: 乌海市环保投资有限责任公司 | C9: 1260 | D9: =12.66+14 -> 27 | E9: 1050 | F9: 36 | G9: 210 | H9: -9 | I9: 10 | J9: 200 | K9: =J9*55% -> 110.00
A10: 5 | B10: 乌海市房产居间服务有限责任公司 | C10: 960 | D10: 254 | E10: 430 | F10: 64 | G10: 530 | H10: 190 | I10: 23 | J10: 507 | K10: =J10*51% -> 258.57
A11: 6 | B11: 乌海市煤焦供应链科技有限责任公司 | C11: 61700 | D11: 6091 | E11: 61544 | F11: 6095 | G11: 156 | H11: -4 | I11: =G11*0.25 -> 39 | J11: 117 | K11: 117.00
A12: 7 | B12: 内蒙古零碳城市运营科技有限责任公司 | C12: 200 | D12: 0 | E12: 90 | F12: 1 | G12: 110 | H12: -1 | I12: 39 | J12: 71 | K12: =J12*51% -> 36.21
A13: 8 | B13: 内蒙古西卓子山矿产资源开发有限责任公司 | C13: 961 | D13: 2 | E13: 817 | F13: 41 | G13: 144 | H13: -39 | I13: 51 | J13: 93 | K13: =J13 -> 93.00
A14: 9 | B14: 乌海市科技创新服务有限公司 | C14: 344 | D14: 7 | E14: 294 | F14: 62 | G14: 50 | H14: -45 | J14: 50 | K14: =J14 -> 50.00
A15: 10 | B15: 乌海市威信保安守押服务有限责任公司 | C15: =2218+7 -> 2225 | D15: 460 | E15: 2084 | F15: 434 | G15: 141 | H15: 29 | I15: =G15*0.1 -> 14 | J15: 127 | K15: =J15*41% -> 52.03
B16: 合计 | C16: =C6+C7+C8+C9+C10+C12+C11+C13+C14+C15 -> 70156 | D16: =SUM(D6:D15) -> 7102 | E16: 67663 | F16: 6664 | G16: 2493 | H16: 451 | I16: 183 | J16: 2310 | K16: 1823

Sheet Sheet1
